fUST/lending_fUST_20240212
["ID","MTS","AMOUNT","RATE_DAILY","PERIOD"]
[313849739,1707752845173,-674.37783373,0.00020822,2]
[313849740,1707752845193,-674.37783373,0.00020822,2]
[313849741,1707752845215,-674.37783373,0.00020822,2]
[313849742,1707752845235,-674.37783373,0.00020822,2]
[313849743,1707752845256,-674.37783373,0.00020822,2]
[313849744,1707752845276,-674.37783373,0.00020822,2]
[313849745,1707752845297,-674.37783373,0.00020822,2]
[313849746,1707752845318,-674.37783373,0.00020822,2]
[313849747,1707752845338,-674.37783373,0.00020822,2]
[313849748,1707752845363,-674.37783373,0.00020822,2]
[313849749,1707752845383,-674.37783373,0.00020822,2]
[313849750,1707752845404,-674.37783373,0.00020822,2]
[313849751,1707752845424,-674.37783373,0.00020822,2]
[313849752,1707752845445,-674.37783373,0.00020822,2]
[313849753,1707752845465,-674.37783373,0.00020822,2]
[313849754,1707752845486,-674.37783373,0.00020822,2]
[313849755,1707752845508,-674.37783373,0.00020822,2]
[313849756,1707752845530,-674.37783373,0.00020822,2]
[313849757,1707752845551,-674.37783373,0.00020822,2]
[313849758,1707752845571,-674.37783373,0.00020822,2]
[313849759,1707752845592,-674.37783373,0.00020822,2]
[313849760,1707752845613,-674.37783373,0.00020822,2]
[313849761,1707752845634,-676.45924675,0.00020822,2]
[313849762,1707752845658,-676.45924675,0.00020822,2]
[313849763,1707752845679,-676.45924675,0.00020822,2]
[313849764,1707752845699,-676.45924675,0.00020822,2]
[313849765,1707752845720,-676.45924675,0.00020822,2]
[313849766,1707752845741,-676.45924675,0.00020822,2]
[313849767,1707752845760,-300.17986929,0.00020822,2]
[313849768,1707752845780,-200.3389772,0.00020822,2]
[313849769,1707752845917,-620.03170284,0.00020915,2]
[313849770,1707752845938,-8388.46766418,0.00021,2]
[313849771,1707752853103,-1859.09579688,0.0002082,2]
[313849772,1707752853125,-1291.59702042,0.00020821,2]
[313849773,1707752853147,-5493.89807813,0.00021,2]
[313849774,1707752853166,-195.02426221,0.00021,2]
[313849775,1707752853186,-9895.79446713,0.00021,2]
[313849776,1707752853207,-815.2881777,0.00021,2]
[313849777,1707752853228,-2500.0,0.00021,2]
[313849778,1707752853249,-1000.0,0.00021,21]
[313849779,1707752853271,-385.0,0.00021,9]
[313849780,1707752853291,-1281.08772176,0.00021011,2]
[313849781,1707752853312,-4897.83,0.00021085,3]
[313849782,1707752853334,-500.0,0.00021095,2]
[313849783,1707752853356,-500.0,0.00021095,2]
[313849784,1707752853375,-1327.83,0.00021095,2]
[313849785,1707752853396,-671.38,0.00021095,2]
[313849786,1707752853416,-1603.64,0.00021095,2]
[313849787,1707752853438,-597.5,0.00021095,2]
[313849788,1707752853459,-500.0,0.00021095,2]
[313849789,1707752853481,-500.0,0.00021095,2]
[313849790,1707752853504,-612.39,0.00021095,2]
[313849791,1707752853524,-570.87,0.00021095,2]
[313849792,1707752853548,-2781.22,0.00021095,2]
[313849793,1707752853568,-926.44,0.00021095,2]
[313849794,1707752853588,-1127.95,0.00021095,2]
[313849795,1707752853611,-900.11,0.00021095,2]
[313849796,1707752853635,-626.0,0.00021095,2]
[313849797,1707752853657,-10621.62,0.00021095,2]
[313849798,1707752853678,-1522.35,0.00021095,2]
[313849799,1707752853699,-10764.9,0.00021095,2]
[313849800,1707752853736,-1313.62,0.00021095,2]
[313849801,1707752853761,-500.0,0.00021095,2]
[313849802,1707752853782,-500.0,0.00021095,2]
[313849803,1707752853805,-500.0,0.00021095,2]
[313849804,1707752853826,-7608.55,0.00021095,2]
[313849805,1707752853847,-680.43,0.00021095,2]
[313849806,1707752853872,-179.73741577,0.00021095,2]
[313849807,1707752927357,1000.0,0.0001855,2]
[313849815,1707752961153,3286.4977079,0.00018531,2]
[313849822,1707752988802,1000.0,0.000185,2]
[313849827,1707753025285,1000.0,0.000185,2]
[313849911,1707753032231,-1291.59702042,0.0001853,2]
[313849914,1707753032241,-733.8779113,0.00018531,2]
[313849917,1707753032250,-1859.09579688,0.00019176,2]
[313849920,1707753032260,-510.49,0.00019178,2]
[313849923,1707753032270,-500.0,0.00019178,2]
[313849926,1707753032279,-751.96,0.00019178,2]
[313849929,1707753032288,-500.0,0.00019178,2]
[313849932,1707753032297,-500.0,0.00019178,2]
[313849935,1707753032306,-500.0,0.00019178,2]
[313849938,1707753032315,-1854.15,0.00019178,2]
[313849941,1707753032324,-500.0,0.00019178,2]
[313849943,1707753032333,-1194.79,0.00019178,2]
[313849945,1707753032342,-600.07,0.00019178,2]
[313849947,1707753032351,-500.0,0.00019178,2]
[313849949,1707753032359,-875.75,0.00019178,2]
[313849951,1707753032368,-500.0,0.00019178,2]
[313849953,1707753032377,-500.0,0.00019178,2]
[313849955,1707753032386,-7176.6,0.00019178,2]
[313849957,1707753032395,-500.0,0.00019178,2]
[313849959,1707753032404,-500.0,0.00019178,2]
[313849961,1707753032413,-500.0,0.00019178,2]
[313849963,1707753032422,-5072.37,0.00019178,2]
[313849965,1707753032430,-948.94,0.00019178,2]
[313849967,1707753032439,-1014.9,0.00019178,2]
[313849969,1707753032448,-500.0,0.00019178,2]
[313849971,1707753032457,-510.09,0.00019178,2]
[313849973,1707753032466,-500.0,0.00019178,2]
[313849974,1707753032475,-668.29,0.00019178,2]
[313849976,1707753032485,-500.0,0.00019178,2]
[313849978,1707753032494,-1069.09,0.00019178,2]
[313849980,1707753032503,-500.0,0.00019178,2]
[313849982,1707753032513,-1084.13,0.00019178,2]
[313849984,1707753032522,-290.0,0.000193,2]
[313849986,1707753032531,-500.0,0.00019351,2]
[313849987,1707753032540,-4735.16,0.00019351,2]
[313849989,1707753032548,-500.0,0.00019351,2]
[313849990,1707753032557,-600.30398029,0.00019352,2]
[313849991,1707753032567,-751.96,0.00019452,2]
[313849992,1707753032577,-500.0,0.00019452,2]
[313849993,1707753032587,-1854.15,0.00019452,2]
[313849994,1707753032597,-1194.79,0.00019452,2]
[313849995,1707753032607,-600.07,0.00019452,2]
[313849996,1707753032616,-500.0,0.00019452,2]
[313849997,1707753032625,-875.75,0.00019452,2]
[313849998,1707753032634,-7176.6,0.00019452,2]
[313849999,1707753032643,-500.0,0.00019452,2]
[313850000,1707753032653,-500.0,0.00019452,2]
[313850001,1707753032662,-5072.37,0.00019452,2]
[313850002,1707753032673,-948.94,0.00019452,2]
[313850003,1707753032682,-1014.9,0.00019452,2]
[313850004,1707753032691,-510.09,0.00019452,2]
[313850005,1707753032701,-630.33934111,0.00019452,2]
[313850006,1707753032714,-37.95065889,0.00019452,2]
[313850007,1707753032723,-1069.09,0.00019452,2]
[313850008,1707753032732,-1084.13,0.00019452,2]
[313850009,1707753032741,-1115.76610401,0.000195,2]
[313850010,1707753032750,-3401.27,0.00019605,3]
[313850011,1707753032759,-2022.33955287,0.00019615,3]
[313850012,1707753032772,-2059.19044713,0.00019615,3]
[313850013,1707753032782,-500.0,0.00019625,2]
[313850014,1707753032791,-2410.80955287,0.00019625,2]
[313850015,1707753032803,-2324.35044713,0.00019625,2]
[313850016,1707753032812,-500.0,0.00019625,2]
[313850017,1707753032821,-751.96,0.00019726,2]
[313850018,1707753032831,-500.0,0.00019726,2]
[313850020,1707753032840,-1854.15,0.00019726,2]
[313850021,1707753032849,-1194.79,0.00019726,2]
[313850023,1707753032858,-600.07,0.00019726,2]
[313850025,1707753032867,-500.0,0.00019726,2]
[313850026,1707753032877,-875.75,0.00019726,2]
[313850028,1707753032886,-7176.6,0.00019726,2]
[313850030,1707753032895,-500.0,0.00019726,2]
[313850031,1707753032904,-500.0,0.00019726,2]
[313850033,1707753032913,-5072.37,0.00019726,2]
[313850035,1707753032922,-948.94,0.00019726,2]
[313850037,1707753032931,-1014.9,0.00019726,2]
[313850039,1707753032940,-510.09,0.00019726,2]
[313850041,1707753032949,-668.29,0.00019726,2]
[313850043,1707753032958,-1069.09,0.00019726,2]
[313850045,1707753032967,-1084.13,0.00019726,2]
[313850047,1707753032976,-500.0,0.00019899,2]
[313850049,1707753032985,-4735.16,0.00019899,2]
[313850051,1707753032994,-500.0,0.00019899,2]
[313850053,1707753033003,-751.96,0.0002,2]
[313850055,1707753033013,-500.0,0.0002,2]
[313850057,1707753033022,-1854.15,0.0002,2]
[313850059,1707753033031,-1194.79,0.0002,2]
[313850060,1707753033040,-600.07,0.0002,2]
[313850062,1707753033049,-681.44085564,0.0002,2]
[313850064,1707753033058,-500.0,0.0002,2]
[313850066,1707753033068,-875.75,0.0002,2]
[313850068,1707753033077,-7176.6,0.0002,2]
[313850070,1707753033086,-324.28768484,0.0002,2]
[313850072,1707753033095,-500.0,0.0002,2]
[313850074,1707753033104,-500.0,0.0002,2]
[313850076,1707753033113,-5072.37,0.0002,2]
[313850078,1707753033122,-948.94,0.0002,2]
[313850080,1707753033131,-1014.9,0.0002,2]
[313850082,1707753033140,-510.09,0.0002,2]
[313850084,1707753033149,-668.29,0.0002,2]
[313850086,1707753033158,-1069.09,0.0002,2]
[313850088,1707753033167,-1084.13,0.0002,2]
[313850090,1707753033176,-200.0,0.00020136,2]
[313850092,1707753033185,-500.0,0.00020173,2]
[313850094,1707753033194,-4735.16,0.00020173,2]
[313850096,1707753033203,-500.0,0.00020173,2]
[313850098,1707753033212,-751.96,0.00020273,2]
[313850100,1707753033221,-500.0,0.00020273,2]
[313850102,1707753033230,-1854.15,0.00020273,2]
[313850104,1707753033239,-1194.79,0.00020273,2]
[313850105,1707753033249,-600.07,0.00020273,2]
[313850107,1707753033259,-500.0,0.00020273,2]
[313850109,1707753033269,-875.75,0.00020273,2]
[313850111,1707753033278,-7176.6,0.00020273,2]
[313850113,1707753033288,-618.58573866,0.00020273,2]
[313850115,1707753033297,-500.0,0.00020273,2]
[313850117,1707753033307,-5072.37,0.00020273,2]
[313850119,1707753033316,-948.94,0.00020273,2]
[313850121,1707753033325,-1014.9,0.00020273,2]
[313850123,1707753033334,-510.09,0.00020273,2]
[313850125,1707753033343,-668.29,0.00020273,2]
[313850127,1707753033352,-1069.09,0.00020273,2]
[313850129,1707753033361,-1084.13,0.00020273,2]
[313850131,1707753033370,-250.0,0.00020446,2]
[313850133,1707753033379,-500.0,0.00020447,2]
[313850134,1707753033388,-4106.22619373,0.00020447,2]
[313850137,1707753033400,-628.93380627,0.00020447,2]
[313850138,1707753033409,-530.06649377,0.00020447,2]
[313850140,1707753033418,-1452.74362488,0.00020447,2]
[313850142,1707753033430,-8476.58608211,0.00020447,2]
[313850287,1707753041787,-2834.39,0.00020437,3]
[313850289,1707753041798,-6732.92332314,0.00020447,2]
[313850305,1707753041939,-27781.74696987,0.00020447,2]
[313850307,1707753041949,-751.96,0.00020547,2]
[313850309,1707753041958,-500.0,0.00020547,2]
[313850311,1707753041967,-1854.15,0.00020547,2]
[313850313,1707753041976,-1194.79,0.00020547,2]
[313850315,1707753041985,-600.07,0.00020547,2]
[313850317,1707753041994,-500.0,0.00020547,2]
[313850319,1707753042004,-875.75,0.00020547,2]
[313850321,1707753042013,-7176.6,0.00020547,2]
[313850322,1707753042023,-500.0,0.00020547,2]
[313850324,1707753042033,-5072.37,0.00020547,2]
[313850326,1707753042042,-948.94,0.00020547,2]
[313850328,1707753042051,-1014.9,0.00020547,2]
[313850330,1707753042060,-510.09,0.00020547,2]
[313850332,1707753042070,-668.29,0.00020547,2]
[313850334,1707753042079,-1069.09,0.00020547,2]
[313850336,1707753042088,-1084.13,0.00020547,2]
[313850338,1707753042097,-5000.0,0.00020596,2]
[313850340,1707753042106,-5633.96262856,0.00020596,2]
[313850342,1707753042118,-5089.87172266,0.00020596,2]
[313850344,1707753042129,-1652.05952347,0.00020596,2]
[313850346,1707753042138,-500.0,0.00020721,2]
[313850347,1707753042147,-4735.16,0.00020721,2]
[313850349,1707753042156,-751.96,0.00020821,2]
[313850351,1707753042165,-500.0,0.00020821,2]
[313850353,1707753042174,-1854.15,0.00020821,2]
[313850355,1707753042187,-1194.79,0.00020821,2]
[313850356,1707753042196,-600.07,0.00020821,2]
[313850357,1707753042205,-500.0,0.00020821,2]
[313850359,1707753042214,-875.75,0.00020821,2]
[313850361,1707753042224,-7176.6,0.00020821,2]
[313850362,1707753042233,-500.0,0.00020821,2]
[313850363,1707753042242,-5072.37,0.00020821,2]
[313850364,1707753042251,-948.94,0.00020821,2]
[313850365,1707753042260,-1014.9,0.00020821,2]
[313850366,1707753042270,-510.09,0.00020821,2]
[313850367,1707753042280,-668.29,0.00020821,2]
[313850368,1707753042289,-1069.09,0.00020821,2]
[313850369,1707753042298,-1084.13,0.00020821,2]
[313850370,1707753042307,-500.0,0.00020822,2]
[313850371,1707753042316,-166.40114534,0.00020822,2]
[313850372,1707753042325,-500.0,0.00020822,2]
[313850373,1707753042334,-252.51574666,0.00020822,2]
[313850374,1707753042346,-500.0,0.00020822,2]
[313850375,1707753042355,-500.0,0.00020822,2]
[313850376,1707753042364,-354.08363011,0.00020822,2]
[313850377,1707753042374,-593.07183847,0.00020822,2]
[313850378,1707753042383,-500.0,0.00020822,2]
[313850379,1707753042392,-500.0,0.00020822,2]
[313850380,1707753042401,-500.0,0.00020822,2]
[313850381,1707753042410,-500.0,0.00020822,2]
[313850382,1707753042419,-500.0,0.00020822,2]
[313850383,1707753042428,-500.0,0.00020822,2]
[313850384,1707753042437,-276.95111504,0.00020822,2]
[313850385,1707753042446,-500.0,0.00020822,2]
[313850386,1707753042455,-500.0,0.00020822,2]
[313850387,1707753042464,-500.0,0.00020822,2]
[313850388,1707753042473,-500.0,0.00020995,2]
[313850389,1707753042482,-4735.16,0.00020995,2]
[313850390,1707753042492,-7081.08,0.00021094,2]
[313850391,1707753042501,-9650.07,0.00021094,2]
[313850392,1707753042511,-582.04,0.00021095,2]
[313850393,1707753042522,-1539.36,0.00021095,2]
[313850394,1707753042531,-3571.59,0.00021095,2]
[313850395,1707753042540,-5510.25,0.00021095,2]
[313850396,1707753042549,-751.96,0.00021095,2]
[313850397,1707753042558,-500.0,0.00021095,2]
[313850398,1707753042577,-1854.15,0.00021095,2]
[313850399,1707753042589,-1924.11994091,0.00021095,2]
[313850449,1707753043280,-500.0,0.00019178,2]
[313850451,1707753043290,-168.40540142,0.00021095,2]
[313850453,1707753043300,-1194.79,0.00021095,2]
[313850454,1707753043309,-300.0,0.00021095,2]
[313850456,1707753043318,-600.07,0.00021095,2]
[313850458,1707753043328,-3518.46658089,0.00021095,2]
[313850460,1707753043337,-500.0,0.00021095,2]
[313850462,1707753043347,-875.75,0.00021095,2]
[313850464,1707753043356,-903.02883591,0.00021095,2]
[313850466,1707753043368,-1916.13898538,0.00021095,2]
[313850468,1707753043380,-771.34964187,0.00021095,2]
[313850543,1707753044283,2447.68932386,0.000185,2]
[313850658,1707753045542,-1945.27553072,0.00020436,2]
[313850660,1707753045555,-3586.08253684,0.00021095,2]
[313850662,1707753045566,-500.0,0.00021095,2]
[313850664,1707753045577,-5072.37,0.00021095,2]
[313850666,1707753045587,-948.94,0.00021095,2]
[313850668,1707753045598,-1014.9,0.00021095,2]
[313850670,1707753045607,-510.09,0.00021095,2]
[313850671,1707753045617,-668.29,0.00021095,2]
[313850673,1707753045627,-1069.09,0.00021095,2]
[313850676,1707753045637,-1084.13,0.00021095,2]
[313850679,1707753045647,-500.0,0.00021131,2]
[313850681,1707753045657,-198.70078788,0.00021157,2]
[313850684,1707753045667,-192.72047883,0.00021157,2]
[313850687,1707753045682,-1000.0,0.00021157,2]
[313850689,1707753045692,-1000.0,0.00021157,2]
[313850691,1707753045703,-262.3363004,0.00021157,2]
[313850694,1707753045713,-490.03504892,0.00021157,2]
[313850696,1707753045723,-174.9147982,0.00021157,2]
[313850698,1707753045733,-287.55152308,0.00021157,2]
[313850700,1707753045743,-187.36884528,0.00021157,2]
[313850701,1707753045757,-157.24402956,0.00021157,2]
[313850703,1707753045770,-1741.68700077,0.00021219,2]
[313850705,1707753045781,-500.0,0.00021269,2]
[313850708,1707753045791,-4735.16,0.00021269,2]
[313850710,1707753045801,-7081.08,0.00021368,2]
[313850712,1707753045809,-9650.07,0.00021368,2]
[313850714,1707753045818,-500.0,0.00021369,2]
[313850716,1707753045827,-500.0,0.00021369,2]
[313850717,1707753045837,-570.87,0.00021369,2]
[313850719,1707753045846,-926.44,0.00021369,2]
[313850721,1707753045855,-500.0,0.00021369,2]
[313850723,1707753045865,-588.62,0.00021369,2]
[313850725,1707753045874,-582.04,0.00021369,2]
[313850727,1707753045883,-1539.36,0.00021369,2]
[313850729,1707753045893,-3571.59,0.00021369,2]
[313850731,1707753045902,-5510.25,0.00021369,2]
[313850733,1707753045912,-751.96,0.00021369,2]
[313850734,1707753045921,-500.0,0.00021369,2]
[313850736,1707753045931,-1854.15,0.00021369,2]
[313850738,1707753045942,-1194.79,0.00021369,2]
[313850740,1707753045952,-600.07,0.00021369,2]
[313850742,1707753045962,-500.0,0.00021369,2]
[313850744,1707753045971,-875.75,0.00021369,2]
[313850746,1707753045980,-7176.6,0.00021369,2]
[313850748,1707753045989,-500.0,0.00021369,2]
[313850749,1707753045999,-5072.37,0.00021369,2]
[313850751,1707753046008,-948.94,0.00021369,2]
[313850753,1707753046017,-1014.9,0.00021369,2]
[313850755,1707753046029,-510.09,0.00021369,2]
[313850757,1707753046038,-668.29,0.00021369,2]
[313850759,1707753046047,-1069.09,0.00021369,2]
[313850761,1707753046057,-1084.13,0.00021369,2]
[313850763,1707753046067,-166.666666,0.00021422,2]
[313850765,1707753046076,-500.0,0.00021543,2]
[313850767,1707753046086,-4735.16,0.00021543,2]
[313850768,1707753046096,-7081.08,0.00021642,2]
[313850770,1707753046105,-9650.07,0.00021642,2]
[313850772,1707753046114,-245.97749437,0.00021643,2]
[313850774,1707753046124,-436.31661811,0.00021643,2]
[313850776,1707753046134,-570.87,0.00021643,2]
[313850778,1707753046144,-926.44,0.00021643,2]
[313850780,1707753046153,-500.0,0.00021643,2]
[313850782,1707753046162,-582.04,0.00021643,2]
[313850784,1707753046172,-1539.36,0.00021643,2]
[313850786,1707753046181,-3571.59,0.00021643,2]
[313850788,1707753046190,-5510.25,0.00021643,2]
[313850790,1707753046199,-751.96,0.00021643,2]
[313850791,1707753046209,-500.0,0.00021643,2]
[313850793,1707753046218,-1854.15,0.00021643,2]
[313850795,1707753046227,-1194.79,0.00021643,2]
[313850797,1707753046237,-600.07,0.00021643,2]
[313850799,1707753046246,-500.0,0.00021643,2]
[313850801,1707753046255,-875.75,0.00021643,2]
[313850802,1707753046265,-7176.6,0.00021643,2]
[313850803,1707753046277,-500.0,0.00021643,2]
[313850804,1707753046286,-5072.37,0.00021643,2]
[313850805,1707753046296,-948.94,0.00021643,2]
[313850806,1707753046305,-1014.9,0.00021643,2]
[313850807,1707753046314,-510.09,0.00021643,2]
[313850808,1707753046323,-668.29,0.00021643,2]
[313850809,1707753046332,-1069.09,0.00021643,2]
[313850810,1707753046341,-1084.13,0.00021643,2]
[313850811,1707753046350,-750.0,0.00021816,2]
[313850812,1707753046360,-500.0,0.00021817,2]
[313850813,1707753046369,-4735.16,0.00021817,2]
[313850814,1707753046379,-151.0,0.00021829,2]
[313850815,1707753046388,-20109.97314308,0.00021863,2]
[313850816,1707753046397,-7081.08,0.00021916,2]
[313850817,1707753046406,-9650.07,0.00021916,2]
[313850818,1707753046415,-500.0,0.00021917,2]
[313850819,1707753046424,-604.04249121,0.00021917,2]
[313850820,1707753046434,-1000.0,0.00021917,5]
[313850821,1707753046444,-1000.0,0.00021917,5]
[313850822,1707753046486,-599.09177149,0.00021917,5]
[313850823,1707753046496,-570.87,0.00021917,2]
[313850824,1707753046506,-926.44,0.00021917,2]
[313850825,1707753046515,-500.0,0.00021917,2]
[313850826,1707753046527,-582.04,0.00021917,2]
[313850827,1707753046536,-1539.36,0.00021917,2]
[313850828,1707753046546,-3571.59,0.00021917,2]
[313850829,1707753046555,-5510.25,0.00021917,2]
[313850830,1707753046565,-751.96,0.00021917,2]
[313850831,1707753046574,-500.0,0.00021917,2]
[313850832,1707753046584,-1854.15,0.00021917,2]
[313850833,1707753046594,-1194.79,0.00021917,2]
[313850834,1707753046603,-600.07,0.00021917,2]
[313850835,1707753046612,-500.0,0.00021917,2]
[313850836,1707753046622,-875.75,0.00021917,2]
[313850837,1707753046632,-7176.6,0.00021917,2]
[313850838,1707753046642,-500.0,0.00021917,2]
[313850839,1707753046652,-5072.37,0.00021917,2]
[313850840,1707753046662,-948.94,0.00021917,2]
[313850841,1707753046672,-1014.9,0.00021917,2]
[313850854,1707753046819,-510.09,0.00021917,2]
[313850857,1707753046828,-668.29,0.00021917,2]
[313850858,1707753046838,-1069.09,0.00021917,2]
[313850861,1707753046847,-1084.13,0.00021917,2]
[313850862,1707753046857,-400.0,0.00021918,2]
[313850864,1707753046866,-620.00158514,0.00021961,2]
[313850865,1707753046876,-1611.44,0.00022,2]
[313850866,1707753046885,-1500.01,0.00022,2]
[313850867,1707753046895,-820.79970176,0.00022,2]
[313850868,1707753046904,-627.13120559,0.00022,2]
[313850869,1707753046914,-154.92253873,0.00022,2]
[313850870,1707753046923,-1000.0,0.00022,22]
[313850871,1707753046933,-11888.52381892,0.00022,2]
[313850872,1707753046943,-247.38920084,0.00022,4]
[313850873,1707753046953,-500.0,0.00022091,2]
[313850874,1707753046963,-4735.16,0.00022091,2]
[313850875,1707753046972,-1281.08772176,0.00022122,2]
[313850876,1707753046983,-280.0,0.00022149,7]
[313850877,1707753046993,-4781.97317704,0.00022175,5]
[313850878,1707753047003,-7081.08,0.0002219,2]
[313850879,1707753047013,-9650.07,0.0002219,2]
[313850880,1707753047028,-500.0,0.0002219,2]
[313850881,1707753047038,-500.0,0.0002219,2]
[313850882,1707753047048,-420.11340028,0.0002219,2]
[313850883,1707753047059,-371.73762941,0.0002219,2]
[313850884,1707753047068,-635.83021156,0.0002219,2]
[313850885,1707753047077,-500.0,0.0002219,2]
[313850886,1707753047088,-500.0,0.0002219,2]
[313850887,1707753047097,-210.12590851,0.0002219,2]
[313850888,1707753047107,-500.0,0.0002219,2]
[313850889,1707753047117,-358.48775887,0.0002219,2]
[313850890,1707753047126,-500.0,0.0002219,2]
[313850891,1707753047135,-500.0,0.0002219,2]
[313850892,1707753047145,-500.0,0.0002219,2]
[313850893,1707753047155,-444.76268907,0.0002219,2]
[313850894,1707753047165,-348.18064929,0.0002219,2]
[313850896,1707753047174,-500.0,0.0002219,2]
[313850898,1707753047183,-520.52949232,0.0002219,2]
[313850900,1707753047192,-500.0,0.0002219,2]
[313850902,1707753047202,-500.0,0.0002219,2]
[313850904,1707753047211,-500.0,0.0002219,2]
[313850906,1707753047220,-500.0,0.0002219,2]
[313850908,1707753047229,-500.0,0.0002219,2]
[313850910,1707753047238,-500.0,0.0002219,2]
[313850912,1707753047248,-570.87,0.00022191,2]
[313850914,1707753047257,-926.44,0.00022191,2]
[313850916,1707753047267,-332.27012799,0.00022191,2]
[313850918,1707753047281,-582.04,0.00022191,2]
[313850920,1707753047290,-1539.36,0.00022191,2]
[313850923,1707753047300,-3571.59,0.00022191,2]
[313850925,1707753047310,-5510.25,0.00022191,2]
[313850927,1707753047319,-751.96,0.00022191,2]
[313850928,1707753047329,-500.0,0.00022191,2]
[313850930,1707753047339,-1854.15,0.00022191,2]
[313850933,1707753047349,-1194.79,0.00022191,2]
[313850934,1707753047358,-600.07,0.00022191,2]
[313850936,1707753047367,-500.0,0.00022191,2]
[313850938,1707753047377,-875.75,0.00022191,2]
[313850940,1707753047386,-7176.6,0.00022191,2]
[313850942,1707753047397,-500.0,0.00022191,2]
[313850945,1707753047409,-5072.37,0.00022191,2]
[313850947,1707753047418,-948.94,0.00022191,2]
[313850949,1707753047428,-1014.9,0.00022191,2]
[313850952,1707753047451,-510.09,0.00022191,2]
[313850954,1707753047461,-668.29,0.00022191,2]
[313850956,1707753047472,-1069.09,0.00022191,2]
[313850958,1707753047482,-1084.13,0.00022191,2]
[313850960,1707753047493,-151.0,0.00022291,2]
[313850963,1707753047503,-500.0,0.00022365,2]
[313850965,1707753047513,-4735.16,0.00022365,2]
[313850967,1707753047525,-50000.0,0.00022443,2]
[313850969,1707753047534,-151.0,0.00022443,2]
[313850971,1707753047544,-7081.08,0.00022464,2]
[313850973,1707753047554,-9650.07,0.00022464,2]
[313850975,1707753047564,-570.87,0.00022465,2]
[313850977,1707753047573,-926.44,0.00022465,2]
[313850979,1707753047583,-582.04,0.00022465,2]
[313850980,1707753047595,-1539.36,0.00022465,2]
[313850982,1707753047605,-3571.59,0.00022465,2]
[313850984,1707753047615,-5510.25,0.00022465,2]
[313850986,1707753047625,-751.96,0.00022465,2]
[313850988,1707753047634,-500.0,0.00022465,2]
[313850990,1707753047644,-1854.15,0.00022465,2]
[313850992,1707753047654,-1194.79,0.00022465,2]
[313850994,1707753047664,-600.07,0.00022465,2]
[313850996,1707753047674,-500.0,0.00022465,2]
[313850998,1707753047684,-875.75,0.00022465,2]
[313851000,1707753047695,-7176.6,0.00022465,2]
[313851002,1707753047706,-500.0,0.00022465,2]
[313851005,1707753047716,-5072.37,0.00022465,2]
[313851007,1707753047729,-948.94,0.00022465,2]
[313851009,1707753047739,-1014.9,0.00022465,2]
[313851011,1707753047748,-510.09,0.00022465,2]
[313851013,1707753047758,-668.29,0.00022465,2]
[313851015,1707753047768,-1069.09,0.00022465,2]
[313851017,1707753047781,-1084.13,0.00022465,2]
[313851019,1707753047791,-169.4204325,0.000225,2]
[313851021,1707753047801,-254.12757757,0.000225,2]
[313851023,1707753047810,-385.0,0.000225,10]
[313851025,1707753047820,-1000.0,0.00022501,2]
[313851027,1707753047830,-201.08,0.000226,2]
[313851029,1707753047839,-500.0,0.00022639,2]